[Event "85th Tata Steel Challengers 2023"]
[Site "Wijk aan Zee"]
[Date "2023.01.20"]
[Round "6.2"]
[White "Pechac, Jergus"]
[Black "Vaishali, Rameshbabu"]
[Result "0-1"]
[ECO "D85"]
[WhiteElo "2637"]
[BlackElo "2425"]
[Annotator "TA"]
[PlyCount "81"]
[EventDate "2023.01.10"]
[EventType "tourn"]
[EventCountry "NED"]
[SourceTitle "playchess.com"]
[Source "ChessBase"]
[SourceQuality "1"]
[TimeControl "40/6000+30:30/3000+30:900+30"]

{[%evp 20,81,11,5,8,20,39,30,39,27,70,77,67,66,110,108,84,91,114,78,72,66,66,39,40,29,45,34,56,9,1,0,0,0,22,0,0,0,0,0,0,0,28,22,26,0,25,0,0,0,0,0,0,0,0,0,0,-17,0,0,0,0,0,-343]} 1. d4 {[%emt 0:01:15]} Nf6 {[%emt 0:00:12]} 2. c4 {[%emt 0:00:31]} g6 {[%emt 0:00:05]} 3. Nc3 {[%emt 0:00:29]} d5 {[%emt 0:00:04]} 4. cxd5 {[%emt 0:02:50]} Nxd5 {[%emt 0:00:03]} 5. e4 {[%emt 0:00:58]} Nxc3 {[%emt 0:00:03]} 6. bxc3 {[%emt 0:00:08]} Bg7 {[%emt 0:00:04]} 7. Be3 {[%emt 0:00:59]} c5 {[%emt 0:00:07]} 8. Rc1 {[%emt 0:01:12]} Qa5 {[%emt 0:03:35]} 9. Qd2 {[%emt 0:00:52]} cxd4 {[%emt 0:05:27]} 10. cxd4 {[%emt 0:00:10]} Qxd2+ {[%emt 0:00:03]} 11. Bxd2 {[%emt 0:00:42]} O-O {[%emt 0:00:14] D85: Exchange Grünfeld: Unusual White 7th moves and lines with 7 Nf3.} 12. Nf3 {[%emt 0:00:29]} b6 {[%emt 0:06:50]} 13. Bd3 {[%emt 0:20:45]} Ba6 {[%emt 0:03:02] White has an edge.} 14. Ke2 {[%emt 0:01:30]} Rd8 {[%emt 0:03:11]} 15. Bxa6 $1 {[%emt 0:05:07]} Nxa6 {[%emt 0:00:03]} 16. Rc4 {[%emt 0:00:18] [#]} Rac8 $146 {[%emt 0:05:04]} ({Predecessor:} 16... Rd7 17. Rhc1 Rad8 18. a4 Kf8 19. h4 h6 20. Be3 Ke8 21. g4 Rb7 {1-0 Hammes,M (2332)-Goormachtigh,J (2184) EU-Cup 32nd Novi Sad 2016 (7.5)}) 17. Rhc1 {[%emt 0:00:18]} Rxc4 {[%emt 0:00:22]} 18. Rxc4 {[%emt 0:00:07]} e6 {[%emt 0:00:08]} 19. Bg5 {[%emt 0:08:49]} f6 {[%emt 0:02:10]} 20. Be3 {[%emt 0:02:40]} Rd7 {[%emt 0:01:59]} 21. Bf4 {[%emt 0:05:17]} g5 {[%emt 0:14:23]} 22. Bg3 {[%emt 0:00:07] aiming for Ra4.} Bf8 {[%emt 0:06:28] [#]} 23. a3 $1 {[%emt 0:09:41] Hoping for Ra4.} Rb7 {[%emt 0:06:54]} 24. e5 {[%emt 0:24:42]} (24. h4 $14) 24... g4 $11 {[%emt 0:01:32]} 25. Nd2 {[%emt 0:00:13]} f5 {[%emt 0:02:22][%cal Oa6c7]} 26. Rc6 {[%emt 0:01:08]} Kf7 {[%emt 0:17:10]} 27. Nc4 {[%emt 0:00:23][%cal Od4d5]} Nc7 $1 {[%emt 0:07:05]} 28. Nd6+ {[%emt 0:06:54]} Bxd6 {[%emt 0:00:03]} 29. exd6 {[%emt 0:00:06][%mdl 4096] Endgame KRB-KRN} Nd5 {[%emt 0:00:06]} 30. Be5 {[%emt 0:00:38]} Rb8 {[%emt 0:01:44] Dodges Rc8} (30... Ke8 $5 {[%cal Re8d7]}) 31. h3 {[%emt 0:05:48]} b5 {[%emt 0:08:53]} 32. Kd2 {[%emt 0:03:21]} h5 {[%emt 0:02:59]} 33. Kc2 {[%emt 0:01:30]} Ra8 {[%emt 0:10:17] The position is equal.} 34. Kb3 {[%emt 0:06:39]} Ke8 {[%emt 0:00:23]} 35. Rc1 {[%emt 0:00:28]} Kd7 {[%emt 0:00:19]} 36. Rh1 {[%emt 0:00:35]} a5 {[%emt 0:01:30]} 37. a4 {[%emt 0:00:36]} bxa4+ {[%emt 0:03:21]} 38. Ka3 {[%emt 0:00:07]} Rb8 {[%emt 0:00:40] [#] ( -> ...Nc3)} 39. Kxa4 {[%emt 0:00:16]} Nb6+ {[%emt 0:00:32]} 40. Kb5 {[%emt 0:00:13]} Nc8+ {[%emt 0:00:31]} 41. Kc5 $2 {[%emt 0:10:46][%mdl 8192] Weighted Error Value: White=0.07 (flawless) /Black=0.07 (flawless)} (41. Kxa5 $11 {and White has nothing to worry.} Nxd6 42. Ka4) 0-1

[Event "85th Tata Steel Challengers 2023"]
[Site "Wijk aan Zee"]
[Date "2023.01.20"]
[Round "6.3"]
[White "Supi, Luis Paulo"]
[Black "Sindarov, Javokhir"]
[Result "1/2-1/2"]
[ECO "C50"]
[WhiteElo "2608"]
[BlackElo "2654"]
[Annotator "TA"]
[PlyCount "84"]
[EventDate "2023.01.10"]
[EventType "tourn"]
[EventCountry "NED"]
[SourceTitle "playchess.com"]
[Source "ChessBase"]
[SourceQuality "1"]
[TimeControl "40/6000+30:30/3000+30:900+30"]

{[%evp 10,84,14,6,11,14,13,0,0,-2,0,0,0,-37,-37,-50,-48,-45,-48,-60,-55,-54,-54,-68,-65,-60,-64,-63,-59,-56,-59,-63,-59,-74,-58,-62,-75,-106,-104,-112,-105,-132,-132,-141,-141,-154,-112,-199,-203,-204,-150,-150,-150,-150,-153,-185,-208,-175,-150,-150,0,0,0,0,0,0,0,0,0,0,0,0,0,0,0,0,0]} 1. e4 {[%emt 0:00:03]} e5 {[%emt 0:00:06]} 2. Nf3 {[%emt 0:00:06]} Nc6 {[%emt 0:00:03]} 3. Bc4 {[%emt 0:00:16]} Nf6 {[%emt 0:00:07]} 4. d3 {[%emt 0:00:03]} Bc5 {[%emt 0:00:04]} 5. h3 {[%emt 0:00:37]} O-O {[%emt 0:02:28]} 6. Nc3 {[%emt 0:01:13]} a6 {[%emt 0:02:12] seems to push 6...d6 aside. C50: Hungarian Defence and Giuoco Pianissimo.} 7. a4 {[%emt 0:02:54]} d6 {[%emt 0:14:02]} 8. Bg5 {[%emt 0:00:56]} h6 {[%emt 0:08:10]} 9. Bh4 {[%emt 0:00:14] [#]} Be6 $146 {[%emt 0:00:05]} ({Predecessor:} 9... Re8 10. O-O Bd7 11. Nd5 Re6 12. Nxf6+ Rxf6 13. Bxf6 Qxf6 14. Nh2 Qg6 15. Qf3 Rf8 {1-0 Romanchenko,A-Ribeiro,M (1139) EU-ch Hybrid U10 Girls 2021 (6)}) 10. Nd5 {[%emt 0:13:57]} g5 {[%emt 0:24:06][%cal Bg7g5,Bg5g4][%mdl 32]} 11. Nxf6+ {[%emt 0:25:45]} (11. Nxg5 $5 hxg5 12. Bxg5 Bxd5 13. exd5 $11) 11... Qxf6 {[%emt 0:00:09]} 12. Bxe6 {[%emt 0:00:09]} Qxe6 {[%emt 0:07:41]} (12... gxh4 13. Bg4 $14) 13. Bg3 {[%emt 0:00:10]} Ne7 {[%emt 0:00:10]} 14. h4 {[%emt 0:06:45]} g4 {[%emt 0:01:56]} 15. Nd2 {[%emt 0:00:06]} h5 {[%emt 0:09:34]} 16. O-O {[%emt 0:02:58]} f5 {[%emt 0:08:33]} 17. exf5 {[%emt 0:00:08]} Nxf5 {[%emt 0:00:03]} 18. Ne4 {[%emt 0:02:25]} Ba7 {[%emt 0:00:19] White must now prevent ...d5.} 19. Kh2 {[%emt 0:02:15]} d5 {[%emt 0:05:27]} 20. Ng5 {[%emt 0:00:18]} Qf6 $36 {[%emt 0:00:04][%mdl 2048] Black is pushing.} 21. Qe2 {[%emt 0:07:22]} Rae8 {[%emt 0:00:48]} 22. Rae1 {[%emt 0:03:05][%cal Rg3e5]} c6 {[%emt 0:02:51][%cal Bc7c6,Bc6d5][%mdl 32]} 23. c4 {[%emt 0:03:29]} (23. Bxe5 $2 Bb8 24. d4 (24. f4 $2 gxf3 25. Nxf3 Rxe5 $19) 24... Nxd4 $19) 23... Bd4 {[%emt 0:02:19]} 24. Qd1 {[%emt 0:05:20]} Qd6 {[%emt 0:12:30]} (24... Bxb2 $6 25. cxd5 Bd4 26. Ne4 $11) 25. cxd5 {[%emt 0:01:04]} cxd5 {[%emt 0:00:22]} (25... Qxd5 26. Re2 $11) 26. Qb3 {[%emt 0:01:11]} Re7 {[%emt 0:03:01]} 27. Ne4 {[%emt 0:01:41]} Qe6 {[%emt 0:00:06]} 28. Nc3 {[%emt 0:01:41] [#]} (28. Ng5 $17 {was called for.} Qd6 29. Rc1) 28... Ref7 $1 $19 {[%emt 0:00:22]} 29. Qd1 {[%emt 0:15:28]} Nxg3 {[%emt 0:00:29]} 30. fxg3 {[%emt 0:00:05]} Bf2 {[%emt 0:00:20]} 31. Rxf2 {[%emt 0:00:05]} Rxf2 {[%emt 0:00:03]} 32. d4 {[%emt 0:02:32]} e4 {[%emt 0:03:43]} (32... Rxb2 33. Rxe5 Qf7 34. Qd3 $16) 33. Qb3 {[%emt 0:00:53][%cal Oe1e4]} Qf7 {[%emt 0:00:47][%cal Of2g2] [#] ( -> ...Rxg2+!)} 34. Nd1 {[%emt 0:02:47]} Rd2 {[%emt 0:00:34]} ({Better is} 34... Rf6 $17 {...Rc8 would be deadly.} 35. Ne3 Rd8) 35. Qe3 $11 {[%emt 0:01:15] The position is equal.} Rc2 {[%emt 0:02:39] aiming for ...Kh7.} 36. Qg5+ $1 {[%emt 0:00:32]} Kh7 {[%emt 0:00:06] Strongly threatening ...Qf5.} 37. Ne3 {[%emt 0:00:53][%csl LRc2,LRd5] Inhibits Qf5.} Rf2 {[%emt 0:00:10]} (37... Rxb2 38. Rf1 Rf2 39. Rxf2 Qxf2 40. Qxh5+ (40. Nxd5 Qf5 $11) 40... Kg7 41. Qxg4+ (41. Nxg4 Qxd4 42. Ne5 b5 $11) 41... Kh8 42. Qh5+ (42. Nxd5 Qf5 $17) 42... Kg7 43. Qe5+ (43. Nxd5 Qf5 $19) 43... Kh7 44. Nxd5 $16) 38. Rc1 {[%emt 0:01:18]} Rg8 {[%emt 0:01:37]} ({Much less strong is} 38... Rxb2 39. Rf1 Rf2 40. Rxf2 Qxf2 41. Qxh5+ (41. Nxd5 Qf7 $15) 41... Kg7 42. Qxg4+ (42. Nxg4 Qxd4 43. Qh6+ Kf7 $11) 42... Kh6 43. Qg5+ (43. Nxd5 Qf5 $17) 43... Kh7 44. Qh5+ (44. Nxd5 Qf5 $16) 44... Kg7 45. Qe5+ (45. Nxd5 Qf5 $17) 45... Kh7 46. Nxd5 $16) 39. Qe5 {[%emt 0:00:44] And now Rc7 would win.} Re8 {[%emt 0:00:06] Repels Rc7} (39... Rxb2 $2 40. Rc7 $18) 40. Qg5 {[%emt 0:01:13][%cal Oc1c7]} Rg8 {[%emt 0:01:03]} (40... Rxb2 41. Rf1 Qg6 42. Qxd5 $18) 41. Qe5 {[%emt 0:50:38]} Re8 {[%emt 0:25:35] Inhibits Rc7.} (41... Rxb2 $2 42. Rc7 $18) 42. Qg5 {[%emt 0:00:00][%cal Oc1c7]} Rg8 {[%emt 0:02:35] And White is the lucky defender.   Weighted Error Value: White=0.08 (flawless) /Black=0.12 (very precise)} (42... Rxb2 $2 43. Rf1 Qg6 44. Qxd5 $18) 1/2-1/2

[Event "85th Tata Steel Challengers 2023"]
[Site "Wijk aan Zee"]
[Date "2023.01.20"]
[Round "6.4"]
[White "Roebers, Eline"]
[Black "Donchenko, Alexander"]
[Result "0-1"]
[ECO "B12"]
[WhiteElo "2361"]
[BlackElo "2627"]
[Annotator "TA"]
[PlyCount "54"]
[EventDate "2023.01.10"]
[EventType "tourn"]
[EventCountry "NED"]
[SourceTitle "playchess.com"]
[Source "ChessBase"]
[SourceQuality "1"]
[TimeControl "40/6000+30:30/3000+30:900+30"]

{[%evp 9,54,10,16,12,12,-14,21,0,0,0,-10,-26,-18,-29,-39,-48,-36,-130,-110,-160,-66,-103,-85,-123,-117,-140,-108,-141,-97,-154,-115,-133,-144,-135,-112,-214,-224,-259,-218,-658,-658,-650,-640,-1019,-1002,-981,-959]} 1. e4 {[%emt 0:00:03]} c6 {[%emt 0:00:22]} 2. d4 {[%emt 0:00:04]} d5 {[%emt 0:00:07]} 3. e5 {[%emt 0:00:03]} Bf5 {[%emt 0:00:32]} 4. h4 {[%emt 0:00:05]} h5 {[%emt 0:00:33]} 5. Bd3 {[%emt 0:00:04]} Bxd3 {[%emt 0:00:07]} 6. Qxd3 {[%emt 0:00:05][%cal Oe5e6] And now e6! would win. B12: Caro-Kann: Advance Variation.} Qa5+ {[%emt 0:00:23]} 7. b4 {[%emt 0:00:46]} Qa6 {[%emt 0:02:28] Black is weak on the dark squares} 8. Qd1 {[%emt 0:00:48][%cal Oe5e6] The position is equal.} e6 {[%emt 0:03:11]} 9. c3 {[%emt 0:02:05] [#]} Qb6 $146 {[%emt 0:05:53]} ({Predecessor:} 9... Ne7 10. Ne2 Nd7 11. a4 Nf5 12. Nd2 Be7 13. Nf3 b6 14. g3 c5 15. b5 Qb7 {1-0 Kramnik,V (2753)-Melkumyan,H (2645) Chess.com Rapid CGC KO 2022 (1.1)}) 10. Nd2 {[%emt 0:12:10]} a5 {[%emt 0:02:09]} 11. bxa5 {[%emt 0:01:42]} Qxa5 {[%emt 0:01:40]} 12. Rh3 {[%emt 0:09:20]} Ne7 {[%emt 0:10:52][%cal Bg8e7,Be7f5,Bf5h4][%mdl 32]} 13. c4 {[%emt 0:15:22]} Nf5 $17 {[%emt 0:04:59]} (13... dxc4 $2 14. Ra3 Qxa3 15. Bxa3 Rxa3 16. Nxc4 $18) 14. c5 {[%emt 0:01:32] [#]} ({White should play} 14. Rb3) 14... Qc7 {[%emt 0:08:45] Black has more active pieces.} ({But not} 14... Nxd4 15. Ra3 $18) (14... Qb4 $1 $17 {[%cal Rb4d4]} 15. Ne2 Nxd4) 15. Bb2 {[%emt 0:05:53]} Nd7 {[%emt 0:03:59]} 16. Rb3 {[%emt 0:04:00]} Nxh4 {[%emt 0:03:22]} 17. Kf1 {[%emt 0:01:51]} Be7 {[%emt 0:03:31]} 18. Rb1 {[%emt 0:07:10]} Rxa2 {[%emt 0:09:09]} 19. Ne2 {[%emt 0:06:43]} (19. Ndf3 $142) 19... Nf5 {[%emt 0:05:00]} 20. Ba3 {[%emt 0:03:54]} Qa5 {[%emt 0:02:09][%csl LRa3,LRd2]} 21. Bb4 {[%emt 0:01:09]} Qa8 {[%emt 0:03:04]} 22. Rh3 {[%emt 0:03:30]} (22. Kg1 $17) 22... g6 $19 {[%emt 0:04:31][%cal Bg7g6,Bg6g5,Bg5g4][%mdl 32]} 23. Nf3 {[%emt 0:06:18]} g5 {[%emt 0:05:06] Hoping for ...g4.} 24. Nc3 $2 {[%emt 0:04:35]} (24. Nh2) 24... g4 {[%emt 0:02:00][%csl LRf3,LRh3] Black is clearly winning.} 25. Nxa2 {[%emt 0:09:42]} Qxa2 {[%emt 0:00:35]} 26. Rh1 {[%emt 0:04:39]} gxf3 {[%emt 0:00:31]} 27. gxf3 {[%emt 0:00:05] [#]} Nxd4 $1 {[%emt 0:01:16][%mdl 64] Deflection.   Weighted Error Value: White=0.90/Black=0.15 (very precise)} 0-1

[Event "85th Tata Steel Challengers 2023"]
[Site "Wijk aan Zee"]
[Date "2023.01.20"]
[Round "6.5"]
[White "Yilmaz, Mustafa"]
[Black "Beerdsen, Thomas"]
[Result "1/2-1/2"]
[ECO "D45"]
[WhiteElo "2609"]
[BlackElo "2515"]
[Annotator "TA"]
[PlyCount "55"]
[EventDate "2023.01.10"]
[EventType "tourn"]
[EventCountry "NED"]
[SourceTitle "playchess.com"]
[Source "ChessBase"]
[SourceQuality "1"]
[TimeControl "40/6000+30:30/3000+30:900+30"]

{[%evp 19,55,0,0,0,31,29,77,0,0,0,0,0,0,0,20,15,41,33,36,27,36,16,96,31,27,28,116,45,68,47,118,121,112,-5,85,0,111,0]} 1. d4 {[%emt 0:00:04]} d5 {[%emt 0:00:06]} 2. c4 {[%emt 0:00:05]} c6 {[%emt 0:00:06]} 3. Nf3 {[%emt 0:00:08]} Nf6 {[%emt 0:00:07]} 4. Nc3 {[%emt 0:00:27]} e6 {[%emt 0:00:07]} 5. e3 {[%emt 0:00:45]} Nbd7 {[%emt 0:00:13]} 6. Be2 {[%emt 0:01:31]} Bd6 {[%emt 0:00:18]} 7. O-O {[%emt 0:00:30]} O-O {[%emt 0:00:08]} 8. b3 {[%emt 0:01:10]} b6 {[%emt 0:00:30]} 9. Bb2 {[%emt 0:01:06]} Bb7 {[%emt 0:00:07]} 10. Qc2 {[%emt 0:00:58]} Qe7 {[%emt 0:00:31]} 11. a4 {[%emt 0:01:01] D45: Semi-Slav: 5 e3.} Rac8 {[%emt 0:14:45]} 12. a5 {[%emt 0:03:09] [#]} c5 $146 {[%emt 0:04:07]} (12... Bb8 $11) ({Predecessor:} 12... Bb8 13. Rfc1 c5 14. a6 Ba8 15. cxd5 exd5 16. Qf5 Qe6 17. Bd3 g6 18. Qxe6 fxe6 {1-0 Narayanan,S (2647)-Sturt,R (2485) Yerevan op-A 3rd 2021 (4)}) 13. a6 {[%emt 0:04:02]} ({Better is} 13. axb6 $16 axb6 14. Ra7) 13... Ba8 $11 {[%emt 0:00:57]} 14. Rfd1 {[%emt 0:13:11]} Rfd8 {[%emt 0:09:56]} 15. Rac1 {[%emt 0:07:19]} cxd4 {[%emt 0:07:49]} 16. exd4 {[%emt 0:04:02]} dxc4 {[%emt 0:10:13]} 17. bxc4 {[%emt 0:01:25]} Nf8 {[%emt 0:10:06]} 18. Nb5 {[%emt 0:07:36]} Ng6 {[%emt 0:07:33]} 19. Qb3 {[%emt 0:17:11]} Ne4 {[%emt 0:05:32]} 20. Nxd6 {[%emt 0:07:26]} Qxd6 {[%emt 0:05:04]} (20... Nxd6 $11 21. Bf1 Ne4) 21. Bf1 {[%emt 0:03:01]} (21. c5 $16 bxc5 22. dxc5) 21... Qf4 $14 {[%emt 0:05:14]} 22. Qe3 {[%emt 0:09:10]} Qf5 {[%emt 0:05:25]} (22... Qxe3 $11 23. fxe3 Ne7) 23. Re1 {[%emt 0:05:32]} (23. c5 $1 $16) 23... Qh5 {[%emt 0:05:03]} 24. Be2 {[%emt 0:03:00]} Nd6 {[%emt 0:02:20]} (24... Qg4 $14) 25. Ne5 $16 {[%emt 0:11:05]} Qh4 {[%emt 0:00:21] [#]} 26. Nf3 {[%emt 0:04:33]} (26. Bd3 $1 $16) 26... Qh5 {[%emt 0:00:25]} (26... Qf6 $11 {keeps the balance.}) 27. Ne5 {[%emt 0:00:05]} Qh4 {[%emt 0:00:04] [#]} 28. Nf3 {[%emt 0:00:08] Weighted Error Value: White=0.31/Black=0.28 (precise)} ({White should try} 28. Bd3 $1 $16) 1/2-1/2

[Event "85th Tata Steel Challengers 2023"]
[Site "Wijk aan Zee"]
[Date "2023.01.20"]
[Round "6.6"]
[White "Mishra, Abhimanyu"]
[Black "Tabatabaei, M. Amin"]
[Result "1/2-1/2"]
[ECO "D12"]
[WhiteElo "2559"]
[BlackElo "2686"]
[Annotator "TA"]
[PlyCount "157"]
[EventDate "2023.01.10"]
[EventType "tourn"]
[EventCountry "NED"]
[SourceTitle "playchess.com"]
[Source "ChessBase"]
[SourceQuality "1"]
[TimeControl "40/6000+30:30/3000+30:900+30"]

{[%evp 12,157,18,18,33,2,33,45,27,15,25,23,24,17,28,28,49,27,46,23,35,29,50,25,21,-14,28,34,31,26,28,31,53,42,69,44,37,58,51,33,51,56,59,27,31,19,29,28,15,0,2,17,23,11,22,0,0,0,0,0,0,0,0,0,0,0,7,0,0,0,0,0,0,-13,0,0,0,0,0,0,0,0,0,0,50,28,27,29,42,44,276,275,275,269,254,223,196,210,198,226,199,212,267,125,91,32,568,490,564,536,388,243,1643,1612,12849,12264,29970,29972,29972,29973,29974,47,47,47,29975,29976,29976,29977,29977,0,29976,29977,29976,0,0,0,0,0,0,0,0,0,0,0,0,0,0,0]} 1. d4 {[%emt 0:00:02]} d5 {[%emt 0:00:24]} 2. Nf3 {[%emt 0:00:10]} Nf6 {[%emt 0:00:09]} 3. c4 {[%emt 0:00:19]} c6 {[%emt 0:00:07]} 4. e3 {[%emt 0:00:50]} Bf5 {[%emt 0:00:08]} 5. Nc3 {[%emt 0:00:52]} e6 {[%emt 0:00:05]} 6. Nh4 {[%emt 0:00:28]} Be4 {[%emt 0:00:10]} 7. f3 {[%emt 0:00:57]} Bg6 {[%emt 0:00:07] D12: Slav Defence: 3 Nf3 Nf6 4 e3 Bf5.} 8. Bd2 {[%emt 0:00:42]} Be7 $1 {[%emt 0:00:10] The main line 8...Be7 scores better than 8...Nbd7.} 9. Nxg6 {[%emt 0:01:31]} hxg6 {[%emt 0:00:07] White is slightly better.} 10. Qc2 {[%emt 0:01:01]} a5 {[%emt 0:00:13]} 11. cxd5 {[%emt 0:03:45]} Nxd5 {[%emt 0:00:22] [#]} 12. Nxd5 $146 {[%emt 0:02:03]} ({Predecessor:} 12. g3 Na6 13. a3 Nac7 14. Bg2 Rc8 15. Ne2 Nb5 16. e4 Nf6 17. Be3 O-O 18. Rd1 {1-0 Atalik,S (2436)-Gurel,E (2437) SRB-chT Premier 2022 (10.5)}) 12... Qxd5 {[%emt 0:05:56]} 13. Bc4 {[%emt 0:03:59]} Qg5 {[%emt 0:01:42]} 14. g3 {[%emt 0:14:30]} (14. O-O {feels hotter.} Nd7 15. e4 Qh4 16. h3) 14... Bb4 {[%emt 0:06:53]} 15. O-O-O {[%emt 0:03:51]} Nd7 {[%emt 0:01:57]} 16. f4 {[%emt 0:08:11]} Qe7 {[%emt 0:00:29]} 17. e4 {[%emt 0:00:56]} Bxd2+ {[%emt 0:01:46]} 18. Rxd2 {[%emt 0:01:42]} Nb6 {[%emt 0:04:34]} (18... g5 $5 {[%cal Rg5f4]}) 19. Be2 {[%emt 0:11:13]} a4 {[%emt 0:00:54]} 20. h4 {[%emt 0:00:12]} a3 {[%emt 0:03:37]} 21. b3 {[%emt 0:00:39]} Nd7 {[%emt 0:08:34]} 22. Kb1 {[%emt 0:04:04]} Rc8 {[%emt 0:02:38]} 23. Qd3 {[%emt 0:08:54]} Qb4 {[%emt 0:04:47]} 24. Rc1 {[%emt 0:04:03]} O-O {[%emt 0:06:30]} 25. e5 {[%emt 0:06:11] Dodges Nf6} Rfd8 {[%emt 0:01:48]} 26. h5 {[%emt 0:01:53]} Nf8 {[%emt 0:18:53]} 27. Qc3 {[%emt 0:08:47]} (27. Rc4 $5 {[%cal Rc4b4]} Qe7 28. hxg6 $14) 27... Qxc3 {[%emt 0:06:53]} 28. Rxc3 {[%emt 0:00:07]} gxh5 {[%emt 0:00:21]} 29. Bxh5 {[%emt 0:00:41]} Nd7 {[%emt 0:00:02][%cal Bf8d7,Bd7b6,Bb6a8,Ba8c7,Bc7d5][%mdl 32]} 30. Kc2 {[%emt 0:03:48]} Nb6 {[%emt 0:00:38] aiming for ...Nd5.} 31. Bf3 {[%emt 0:00:41]} Na8 {[%emt 0:12:31]} 32. b4 {[%emt 0:07:39]} Nc7 $1 {[%emt 0:00:35]} (32... Nb6 33. Rdd3 $16) 33. Be2 {[%emt 0:02:56]} Nd5 {[%emt 0:01:15]} 34. Rb3 {[%emt 0:00:02]} Ra8 {[%emt 0:02:02]} 35. Bf3 {[%emt 0:02:22]} Nc7 {[%emt 0:06:05]} 36. Kd3 {[%emt 0:01:18]} Ra4 {[%emt 0:02:03]} 37. Ke3 {[%emt 0:01:53]} Rda8 {[%emt 0:01:15]} 38. Rdd3 {[%emt 0:03:38]} R8a6 {[%emt 0:02:01]} 39. Be4 {[%emt 0:01:20]} Kf8 {[%emt 0:03:43]} 40. g4 {[%emt 0:00:45]} g6 {[%emt 0:01:11]} 41. Rdc3 {[%emt 0:13:16]} Ke7 {[%emt 0:02:30]} 42. Kd3 {[%emt 0:04:52]} Ra8 {[%emt 0:02:50]} 43. Rc1 {[%emt 0:06:21]} Rh8 {[%emt 0:10:01] White must now prevent ...Rh2.} 44. Rh1 {[%emt 0:00:22] Wards off Rh2} Rxh1 {[%emt 0:07:44]} 45. Bxh1 $11 {[%emt 0:00:08][%mdl 4096] Endgame KRB-KRN} Ra8 {[%emt 0:00:04]} 46. Bg2 {[%emt 0:04:48]} Nb5 {[%emt 0:04:43]} 47. Kc4 {[%emt 0:01:53]} g5 {[%emt 0:00:10]} 48. fxg5 $14 {[%emt 0:06:13]} Rd8 {[%emt 0:11:09]} 49. Rd3 {[%emt 0:00:27]} Rg8 {[%emt 0:01:03]} 50. Kc5 {[%emt 0:02:54] Threatens to win with Kb6.} Rxg5 $2 {[%emt 0:00:02] [#]} (50... Rh8 $1 $14) 51. Bxc6 $1 $18 {[%emt 0:02:15][%mdl 576] Double Attack} Nd6 {[%emt 0:04:12] [#]} (51... bxc6 52. Kxc6 Na7+ 53. Kb7 $16) 52. Bd5 $1 {[%emt 0:03:55][%cal Oc5b6][%mdl 512] Strongly threatening Kb6!} Kd7 {[%emt 0:01:04]} (52... f6 53. Re3) 53. Rxa3 {[%emt 0:07:41][%cal Oa3a7] Ra7! would be deadly.} (53. exd6 Rxd5+ 54. Kb6 Kc8 $16) 53... b6+ {[%emt 0:00:22]} 54. Kxb6 {[%emt 0:00:05]} Nc8+ {[%emt 0:00:03]} 55. Kc5 {[%emt 0:02:20]} exd5 {[%emt 0:00:02] KRN-KR} 56. Rf3 {[%emt 0:00:34]} Ne7 {[%emt 0:03:11]} 57. Rxf7 {[%emt 0:00:33]} (57. Rf6 $18 {and White stays clearly on top.}) 57... Rg8 $16 {[%emt 0:00:04] [#]} 58. Rf6 {[%emt 0:00:59] White is more active.} (58. g5 $1 $16) 58... Rxg4 $2 {[%emt 0:02:13][%mdl 8192]} (58... Rc8+ $14 59. Kb5 Rc4) 59. Rd6+ {[%emt 0:00:46]} Kc8 {[%emt 0:00:55]} 60. a4 {[%emt 0:00:31][%cal Ba2a4,Ba4a5][%mdl 32]} Rg1 {[%emt 0:00:50]} 61. b5 {[%emt 0:00:00]} Rc1+ $2 {[%emt 0:00:00]} (61... Ra1 62. Ra6 Kb7) 62. Kb6 $18 {[%emt 0:00:00]} Rc4 {[%emt 0:00:00]} 63. a5 {[%emt 0:00:00]} Kb8 {[%emt 0:00:00]} 64. Rd8+ {[%emt 0:00:00]} Nc8+ {[%emt 0:00:00]} 65. Ka6 {[%emt 0:00:00]} Rxd4 {[%emt 0:00:00]} 66. e6 $2 {[%emt 0:00:35]} (66. b6 Rb4 67. e6 Re4 68. Rxc8+ {[%mdl 64] Deflection} (68. Rxd5 Rxe6 69. Rh5 Nd6 $11) 68... Kxc8 69. Ka7 Rb4 70. a6 Kd8 71. b7) 66... Re4 $14 {[%emt 0:00:00]} 67. Re8 {[%emt 0:00:09][%mdl 1024] White threatens b6 and mate. White has compensation.} Re1 $2 {[%emt 0:00:00][%mdl 8192]} (67... Rg4 $14) 68. b6 {[%emt 0:00:59]} Rb1 {[%emt 0:00:00]} 69. Rd8 {[%emt 0:02:16]} Re1 {[%emt 0:00:00]} 70. Re8 {[%emt 0:00:02]} ({And not} 70. Rxd5 Rxe6 71. Rd8 Rf6 $11) 70... Rb1 {[%emt 0:00:00]} 71. Rf8 {[%emt 0:15:24]} Re1 {[%emt 0:14:39] [#]} 72. Rf6 $2 {[%emt 0:00:23]} (72. Rxc8+ $1 {mates} Kxc8 73. Ka7 Rb1 74. a6 Kd8 75. b7 d4 76. Ka8 (76. b8=R+ Rxb8 77. Kxb8 d3 $11) 76... Rg1 77. b8=Q+ (77. b8=R+ Ke7 $14) 77... Ke7 78. a7 Kxe6 79. Qb5) 72... d4 $11 {[%emt 0:01:25] The position is equal.} 73. b7 {[%emt 0:00:59]} d3 {[%emt 0:00:04]} 74. bxc8=Q+ {[%emt 0:00:34]} Kxc8 {[%emt 0:00:07]} 75. Rf8+ {[%emt 0:00:41]} Kc7 {[%emt 0:00:10][%cal Od3d2]} 76. Rf7+ {[%emt 0:00:11]} Kc8 {[%emt 0:02:01][%cal Od3d2]} 77. Rf8+ {[%emt 0:00:04]} Kc7 {[%emt 0:00:03][%cal Od3d2] ( -> ...d2!)} 78. Rf7+ {[%emt 0:00:06]} Kc8 {[%emt 0:00:02]} 79. Rf8+ {[%emt 0:00:08] Black defended with fortune.   Weighted Error Value: White=0.12 (very precise) /Black=0.25 (precise)} 1/2-1/2